bitfinex-derivatives/quotes_BTCF0:USTF0_20251111
["timestamp","ask_amount","ask_price","bid_price","bid_amount"]
[1762893850694,0.02387496,102930.0,102920.0,0.73494661]
[1762893850994,0.02387496,102930.0,102920.0,1.09574661]
[1762893851298,0.12106256,102930.0,102920.0,0.57743835]
[1762893851498,0.12106256,102930.0,102920.0,0.20663835]
[1762893851499,0.48186256,102930.0,102920.0,0.20663835]
[1762893851699,0.63937082,102930.0,102920.0,0.1543471]
[1762893851999,0.63937082,102930.0,102920.0,0.05715]
[1762893852199,0.61869389,102930.0,102920.0,0.05715]
[1762893852401,0.61869389,102930.0,102920.0,0.1543471]
[1762893852798,0.61869389,102930.0,102920.0,0.05715]
[1762893853601,0.61869389,102930.0,102910.0,0.18886366]
[1762893853602,0.0971971,102920.0,102910.0,0.18886366]
[1762893853800,0.83087513,102920.0,102910.0,0.18886366]
[1762893857299,0.83087513,102920.0,102910.0,0.15388176]
[1762893857603,0.98838339,102920.0,102910.0,0.05667526]
[1762893857798,0.98838339,102920.0,102910.0,0.03517526]
[1762893858005,0.98838339,102920.0,102910.0,0.05667526]
[1762893859500,0.98838339,102920.0,102910.0,0.15388176]
[1762893859701,0.98838339,102920.0,102910.0,0.05667526]
[1762893860201,0.98938339,102920.0,102910.0,0.05667526]
[1762893861104,0.98938339,102920.0,102910.0,0.15388176]
[1762893861304,0.89218629,102920.0,102910.0,0.15388176]
[1762893862603,0.00319803,102920.0,102910.0,0.31139002]
[1762893862801,0.001,102920.0,102910.0,0.70717192]
[1762893863102,0.36094526,102940.0,102930.0,0.1534777]
[1762893863103,0.00014526,102940.0,102930.0,0.1534777]
[1762893863309,0.00234329,102940.0,102930.0,0.67178596]
[1762893863497,0.37302329,102940.0,102930.0,0.70670052]
[1762893864306,0.37302329,102940.0,102930.0,0.70870052]
[1762893864699,0.37302329,102940.0,102930.0,0.55119226]
[1762893865305,0.37302329,102940.0,102930.0,0.70870052]
[1762893865501,0.47020149,102940.0,102930.0,0.19039226]
[1762893865706,0.83100149,102940.0,102930.0,0.19039226]
[1762893866095,0.73382329,102940.0,102930.0,0.19039226]
[1762893866406,0.83100149,102940.0,102930.0,0.19039226]
[1762893866708,0.73382329,102940.0,102930.0,0.19039226]
[1762893866905,0.73382329,102940.0,102930.0,0.1554777]
[1762893867105,0.37302329,102940.0,102930.0,0.5162777]
[1762893867308,0.37302329,102940.0,102930.0,0.55119226]
[1762893867497,0.00234329,102940.0,102930.0,0.70870052]
[1762893867802,0.37298329,102940.0,102930.0,0.70870052]
[1762893870302,0.37298329,102940.0,102930.0,0.55119226]
[1762893870506,0.37298329,102940.0,102930.0,0.34790052]
[1762893870709,0.47016149,102940.0,102930.0,0.34790052]
[1762893870903,0.37298329,102940.0,102930.0,0.31298596]
[1762893871105,0.83096149,102940.0,102930.0,0.1554777]
[1762893874008,0.98846975,102940.0,102930.0,0.1554777]
[1762893874200,0.98846975,102940.0,102930.0,0.002]
[1762893874513,1.1346382,102940.0,102930.0,0.002]
[1762893875213,0.0971877,102930.0,102920.0,0.1534871]
[1762893875407,0.61769399,102930.0,102920.0,0.1534871]
[1762893875609,0.46018573,102930.0,102920.0,0.1534871]
[1762893875916,0.61769399,102930.0,102920.0,0.1534871]
[1762893876913,0.61769399,102930.0,102920.0,0.05629]
[1762893877211,0.61769399,102930.0,102920.0,0.1534871]
[1762893877909,0.61769399,102930.0,102920.0,0.1544871]
[1762893878710,0.46018573,102930.0,102920.0,0.1544871]
[1762893879714,0.37275803,102930.0,102920.0,0.1544871]
[1762893880019,0.46994573,102930.0,102920.0,0.1544871]
[1762893880809,0.83074573,102930.0,102920.0,0.1544871]
[1762893881007,0.98825346,102930.0,102920.0,0.31199483]
[1762893881714,0.62745346,102930.0,102920.0,0.31199483]
[1762893881915,0.98825346,102930.0,102920.0,0.31199483]
[1762893882316,0.62745346,102930.0,102920.0,0.31199483]
[1762893882821,0.37275803,102930.0,102920.0,0.31199483]
[1762893883116,0.00219803,102930.0,102920.0,0.31199483]
[1762893883619,0.37271803,102930.0,102920.0,0.31199483]
[1762893884814,0.00219803,102930.0,102920.0,0.31199483]
[1762893885116,0.37271803,102930.0,102920.0,0.31199483]
[1762893885306,0.62741326,102930.0,102920.0,0.31199483]
[1762893885920,0.62741326,102930.0,102920.0,0.21479773]
[1762893886120,0.98821326,102930.0,102920.0,0.05729]
[1762893886719,0.98821326,102930.0,102920.0,0.01441]
[1762893886914,1.134779,102930.0,102920.0,0.001]
[1762893887419,1.29228673,102930.0,102920.0,0.001]
[1762893887917,0.0971969,102920.0,102910.0,0.05681526]
[1762893888120,0.77521039,102920.0,102910.0,0.05681526]
[1762893888314,0.77521039,102920.0,102910.0,0.01393526]
[1762893888514,0.0972064,102910.0,102900.0,0.05639]
[1762893888819,0.98823216,102910.0,102900.0,0.05639]
[1762893889013,0.83072443,102910.0,102900.0,0.1536058]
[1762893889220,0.00219803,102910.0,102900.0,0.82942126]
[1762893889422,0.46786476,102920.0,102910.0,0.01341]
[1762893889608,0.47006279,102920.0,102910.0,0.31100413]
[1762893889813,0.47006279,102920.0,102910.0,0.31200413]
[1762893890013,0.37286329,102920.0,102910.0,0.31200413]
[1762893890607,0.37286329,102920.0,102910.0,0.34691869]
[1762893891016,0.47006029,102920.0,102910.0,0.34691869]
[1762893891223,0.37286329,102920.0,102910.0,0.34691869]
[1762893892321,0.00234329,102920.0,102910.0,0.34691869]
[1762893893219,0.00234329,102920.0,102910.0,1.84691869]
[1762893893517,0.09954029,102920.0,102910.0,1.74971229]
[1762893893721,0.09954029,102920.0,102910.0,1.84691869]
[1762893894620,0.09954029,102920.0,102910.0,0.34691869]
[1762893895014,0.25704802,102920.0,102910.0,0.34691869]
[1762893895221,0.46034029,102920.0,102910.0,0.34691869]
[1762893895420,0.61784802,102920.0,102910.0,0.34691869]
[1762893895807,0.61784802,102920.0,102910.0,0.05729]
[1762893896013,0.77535575,102920.0,102910.0,0.05729]
[1762893897324,0.77535575,102920.0,102910.0,0.03584]
[1762893897513,0.77535575,102920.0,102910.0,0.05857]
[1762893898522,0.9218239,102920.0,102910.0,0.05757]
[1762893898717,0.9228239,102920.0,102910.0,0.05757]
[1762893899111,0.0972064,102910.0,102900.0,0.0592]
[1762893899315,0.98819216,102910.0,102900.0,0.1564159]
[1762893900314,0.98819216,102910.0,102900.0,0.31492363]
[1762893900519,0.98819216,102910.0,102900.0,0.1574159]
[1762893900723,0.98819216,102910.0,102900.0,0.31492363]
[1762893900926,0.83068443,102910.0,102900.0,0.31492363]
[1762893901124,0.98819216,102910.0,102900.0,0.31492363]
[1762893901324,0.89098576,102910.0,102900.0,0.31492363]
[1762893901521,0.98819236,102910.0,102900.0,0.31492363]
[1762893901920,0.36299803,102910.0,102900.0,0.31492363]
[1762893902226,0.73347803,102910.0,102900.0,0.31492363]
[1762893903222,0.36299803,102910.0,102900.0,0.31492363]
[1762893903423,0.73347803,102910.0,102900.0,0.31492363]
[1762893903624,0.36299803,102910.0,102900.0,0.31492363]
[1762893903926,0.73347803,102910.0,102900.0,0.31492363]
[1762893904327,0.83068463,102910.0,102900.0,0.31492363]
[1762893905024,0.73347803,102910.0,102900.0,0.31492363]
[1762893905529,0.83068463,102910.0,102900.0,0.31492363]
[1762893905829,0.36299803,102910.0,102900.0,0.47243136]
[1762893906128,0.36094526,102920.0,102910.0,0.1559166]
[1762893906325,0.00014526,102920.0,102910.0,0.86664662]
[1762893906716,0.00014526,102920.0,102910.0,0.91893787]
[1762893907324,0.00234329,102920.0,102910.0,0.55163116]
[1762893907627,0.00234329,102920.0,102910.0,0.70913889]
[1762893907926,0.00334329,102920.0,102910.0,0.70913889]
[1762893908330,0.00114526,102920.0,102910.0,0.70913889]
[1762893908521,0.10054039,102920.0,102910.0,0.70913889]
[1762893908728,0.00334329,102920.0,102910.0,0.70913889]
[1762893910434,0.00114526,102920.0,102910.0,0.70913889]
[1762893910734,0.00114526,102920.0,102910.0,0.76143014]
[1762893911233,0.00114526,102920.0,102910.0,0.70913889]
[1762893911430,0.00114526,102920.0,102910.0,0.55163116]
[1762893911630,0.00334329,102920.0,102910.0,0.70913889]
[1762893911826,0.10054039,102920.0,102910.0,0.70913889]
[1762893912026,0.00334329,102920.0,102910.0,0.70913889]
[1762893913735,0.10054039,102920.0,102910.0,0.70913889]
[1762893914537,0.00334329,102920.0,102910.0,0.70913889]
[1762893915038,0.00114526,102920.0,102910.0,0.86664662]
[1762893915733,0.00114526,102920.0,102910.0,0.83173206]
[1762893916130,0.00214526,102920.0,102910.0,0.83173206]
[1762893916331,0.00214526,102920.0,102910.0,0.70914036]
[1762893916639,0.00214526,102920.0,102910.0,0.55163263]
[1762893916835,0.61884812,102920.0,102910.0,0.71878036]
[1762893917035,0.99028812,102920.0,102910.0,0.35134036]
[1762893917235,1.14779585,102920.0,102910.0,0.09662603]
[1762893917439,1.14779585,102920.0,102910.0,0.06171]
[1762893918941,1.14779585,102920.0,102910.0,0.1589166]
[1762893919540,0.99028812,102920.0,102910.0,0.1589166]
[1762893919745,1.14779585,102920.0,102910.0,0.06171]
[1762893920239,0.83278039,102920.0,102910.0,0.1589166]
[1762893920445,0.99028812,102920.0,102910.0,0.1589166]
[1762893920743,0.99028812,102920.0,102910.0,0.06171]
[1762893920934,0.99028812,102920.0,102910.0,0.1589166]
[1762893921130,0.99028812,102920.0,102910.0,0.83473206]
[1762893921131,0.00434329,102920.0,102910.0,0.83473206]
[1762893921334,0.00214526,102920.0,102910.0,1.24004809]
[1762893921537,0.00214526,102920.0,102910.0,1.29233934]
[1762893922746,0.00214526,102920.0,102910.0,1.13483161]
[1762893922945,0.00214526,102920.0,102910.0,1.17417255]
[1762893924642,0.00214526,102920.0,102910.0,1.13925652]
[1762893927452,0.10154039,102920.0,102910.0,0.94240785]
[1762893927651,0.00434329,102920.0,102910.0,0.94240785]
[1762893927950,0.10154039,102920.0,102910.0,0.56421552]
[1762893928251,0.00434329,102920.0,102910.0,0.56421552]
[1762893928441,0.00434329,102920.0,102910.0,0.92501552]
[1762893929446,0.00434329,102920.0,102910.0,0.56421552]
[1762893929750,0.00434329,102920.0,102910.0,0.92501552]
[1762893930555,0.00434329,102920.0,102910.0,0.56421552]
[1762893930849,0.00434329,102920.0,102910.0,0.92501552]
[1762893931051,0.10154049,102920.0,102910.0,0.56421552]
[1762893931344,0.00434329,102920.0,102910.0,0.92501552]
[1762893931752,0.00434329,102920.0,102910.0,0.19381552]
[1762893931940,0.00434329,102920.0,102910.0,0.56417552]
[1762893932146,0.00434329,102920.0,102910.0,0.92497552]
[1762893932443,0.00434329,102920.0,102910.0,0.97726677]
[1762893932954,0.10154049,102920.0,102910.0,0.61646677]
[1762893933163,0.00434329,102920.0,102910.0,0.24610677]
[1762893933448,0.10154049,102920.0,102910.0,0.61646677]
[1762893933855,0.00434329,102920.0,102910.0,0.61646677]
[1762893935048,0.10154049,102920.0,102910.0,0.61646677]
[1762893935447,0.10154049,102920.0,102910.0,0.14894514]
[1762893935652,0.46234049,102920.0,102910.0,0.19386049]
[1762893936950,0.36514329,102920.0,102910.0,0.19386049]
[1762893937156,0.73546329,102920.0,102910.0,0.19386049]
[1762893937757,0.0971784,102940.0,102930.0,0.1554377]
[1762893937758,0.457983,102940.0,102930.0,0.1554377]
[1762893938054,0.83050103,102940.0,102930.0,0.1554377]
[1762893939359,0.83050103,102940.0,102930.0,0.05825]
[1762893939559,0.83050103,102940.0,102930.0,0.05925]
[1762893940159,1.0273497,102940.0,102930.0,0.05925]
[1762893941158,1.0273497,102940.0,102930.0,0.015]
[1762893941463,1.0283497,102940.0,102930.0,0.0364]
[1762893942666,1.0283497,102940.0,102930.0,0.001]
[1762893942854,1.07906636,102940.0,102930.0,0.001]
[1762893943762,0.83150103,102940.0,102930.0,0.0364]
[1762893943962,1.07906636,102940.0,102930.0,0.0364]
[1762893944266,1.07906636,102940.0,102930.0,0.05925]
[1762893947255,1.07906636,102940.0,102930.0,0.015]
[1762893948568,1.07906636,102940.0,102930.0,0.05925]
[1762893948771,1.07906636,102940.0,102930.0,0.1564377]
[1762893948962,1.07906636,102940.0,102930.0,0.05925]
[1762893949458,1.07906636,102940.0,102930.0,0.0364]
[1762893949665,1.07906636,102940.0,102930.0,0.015]
[1762893949968,1.07906636,102940.0,102930.0,0.001]
[1762893950462,1.07906636,102940.0,102930.0,0.0604]
[1762893952272,0.46118103,102940.0,102930.0,0.0604]
[1762893952469,0.83146103,102940.0,102930.0,0.0604]
[1762893953956,1.07902636,102940.0,102930.0,0.0604]
[1762893954164,1.07902636,102940.0,102930.0,0.1575877]
[1762893954477,1.07902636,102940.0,102930.0,0.0604]
[1762893954767,0.0971877,102930.0,102920.0,0.00014526]
[1762893954968,0.70775106,102930.0,102920.0,0.00014526]
[1762893955165,0.85397215,102930.0,102920.0,0.00014526]
[1762893955870,0.85397215,102930.0,102920.0,0.00114526]
[1762893956062,0.85397215,102930.0,102920.0,0.00214526]
[1762893956775,0.85497215,102930.0,102920.0,0.00114526]
[1762893957074,0.60740682,102930.0,102920.0,0.00114526]
[1762893957273,0.85497215,102930.0,102920.0,0.00114526]
[1762893957673,0.85497215,102930.0,102920.0,0.01471526]
[1762893958172,0.60740682,102930.0,102920.0,0.01471526]
[1762893958373,0.85497215,102930.0,102920.0,0.01471526]
[1762893959873,0.85497215,102930.0,102920.0,0.03774526]
[1762893960477,0.85497215,102930.0,102920.0,0.01471526]
[1762893961775,0.90678054,102930.0,102920.0,0.01471526]
[1762893961975,0.85497215,102930.0,102920.0,0.01471526]
[1762893962468,0.60740682,102930.0,102920.0,0.03664526]
[1762893962675,0.0971972,102920.0,102910.0,0.01302]
[1762893962875,0.0972066,102910.0,102900.0,0.1553061]
[1762893963072,0.46020463,102910.0,102900.0,0.1553061]
[1762893964874,0.61779145,102910.0,102900.0,0.1553061]
[1762893965378,0.61779145,102910.0,102900.0,0.1573061]
[1762893966075,0.36299803,102910.0,102900.0,0.1553061]
[1762893966265,0.36299803,102910.0,102900.0,0.1563061]
[1762893966465,0.73327803,102910.0,102900.0,0.1563061]
[1762893966988,0.83048463,102910.0,102900.0,0.1563061]
[1762893967980,0.46020463,102910.0,102900.0,0.1563061]
[1762893968182,0.83048463,102910.0,102900.0,0.1563061]
[1762893969890,0.98807145,102910.0,102900.0,0.05909]
[1762893970187,0.98807145,102910.0,102900.0,0.1563061]
[1762893970383,0.98807145,102910.0,102900.0,0.05909]
[1762893970789,0.98807145,102910.0,102900.0,0.1563061]
[1762893971588,0.98807145,102910.0,102900.0,0.05909]
[1762893971892,0.98807145,102910.0,102900.0,0.03644]
[1762893972085,1.1328887,102910.0,102900.0,0.03644]
[1762893972480,1.1328887,102910.0,102900.0,0.01451]
[1762893972682,1.1328887,102910.0,102900.0,0.001]
[1762893973388,0.0972255,102890.0,102880.0,0.01328]
[1762893973588,0.097235,102880.0,102870.0,0.1551044]
[1762893973788,0.46023303,102880.0,102870.0,0.1551044]
[1762893974392,0.83051303,102880.0,102870.0,0.1551044]
[1762893974897,0.83151303,102880.0,102870.0,0.1551044]
[1762893975894,0.83151303,102880.0,102870.0,0.1591044]
[1762893975895,0.83251303,102880.0,102870.0,0.1591044]
[1762893977482,0.46223303,102880.0,102870.0,0.1591044]
[1762893977789,0.99009985,102880.0,102870.0,0.004]
[1762893978092,0.83251303,102880.0,102870.0,0.01728]
[1762893978287,0.83251303,102880.0,102860.0,0.01328]
[1762893978288,0.0972444,102870.0,102860.0,0.05786]
[1762893978488,0.61782925,102870.0,102860.0,0.05786]
[1762893978687,0.0972539,102860.0,102850.0,0.05795242]
[1762893978991,0.83053193,102860.0,102850.0,0.05795242]
[1762893979381,0.73327803,102860.0,102850.0,0.15521572]
[1762893979894,0.73331803,102860.0,102850.0,0.15521572]
[1762893980198,0.73331803,102860.0,102850.0,0.31280254]
[1762893980497,0.73331803,102860.0,102850.0,0.15521572]
[1762893980886,0.83057193,102860.0,102850.0,0.15521582]
[1762893981091,0.73331803,102860.0,102850.0,0.15621582]
[1762893981893,0.83057193,102860.0,102850.0,0.15621582]
[1762893982290,0.83057193,102860.0,102850.0,0.05895242]
[1762893982991,0.73331803,102860.0,102850.0,0.31380264]
[1762893983298,0.37251803,102860.0,102850.0,0.67460264]
[1762893983597,0.00073267,102860.0,102850.0,0.67680067]
[1762893983793,0.03991267,102860.0,102850.0,0.31600057]
[1762893984195,0.3608,102870.0,102860.0,0.1545739]
[1762893984396,0.75144267,102870.0,102860.0,0.31435875]
[1762893984592,0.77103267,102870.0,102860.0,0.31435875]
[1762893985099,0.86827707,102870.0,102860.0,0.31435875]
[1762893985300,0.86827707,102870.0,102860.0,0.15677193]
[1762893986402,0.86831707,102870.0,102860.0,0.05951803]
[1762893986999,0.86831707,102870.0,102860.0,0.15677193]
[1762893987202,0.77107267,102870.0,102860.0,0.15677193]
[1762893987499,0.40071267,102870.0,102860.0,0.15677193]
[1762893987699,0.61577248,102880.0,102860.0,0.31435875]
[1762893987700,0.36094526,102880.0,102860.0,0.31435875]
[1762893987995,0.73203793,102880.0,102870.0,0.31215122]
[1762893988194,0.37123793,102880.0,102870.0,0.31434925]
[1762893988401,0.39082793,102880.0,102870.0,0.31434925]
[1762893988593,0.41041793,102880.0,102870.0,0.31434925]
[1762893988798,0.41141793,102880.0,102870.0,0.31434925]
[1762893989393,0.41241793,102880.0,102870.0,0.31434925]
[1762893989606,0.00287793,102880.0,102870.0,0.31434925]
[1762893989900,0.00287793,102880.0,102870.0,0.67514925]
[1762893990198,0.00187793,102880.0,102870.0,0.67514925]
[1762893990399,0.00387793,102880.0,102870.0,0.67514925]
[1762893992099,0.00387793,102880.0,102870.0,0.51756243]
[1762893992100,0.14029293,102880.0,102870.0,0.51756243]
[1762893992308,0.14029293,102880.0,102870.0,0.15676243]
[1762893992309,0.04305793,102880.0,102870.0,0.15676243]
[1762893992806,0.04305793,102880.0,102870.0,0.51756243]
[1762893992997,0.04305793,102880.0,102870.0,0.67514925]
[1762893993807,0.14029293,102880.0,102870.0,0.51756243]
[1762893994106,0.14029293,102880.0,102870.0,0.15676243]
[1762893994292,0.14029293,102880.0,102870.0,0.05951803]
[1762893994492,0.50109293,102880.0,102870.0,0.15676243]
[1762893997908,1.02899975,102880.0,102870.0,0.05951803]
[1762893998105,1.03874975,102880.0,102870.0,0.04551803]
[1762893998298,1.03874975,102880.0,102870.0,0.00219803]
[1762893999008,0.1364244,102870.0,102860.0,0.1545737]
[1762893999208,0.49795707,102870.0,102860.0,0.15677173]
[1762893999405,0.65554389,102870.0,102860.0,0.15677173]
[1762893999805,0.49795707,102870.0,102860.0,0.15677173]
[1762894000201,0.49795707,102870.0,102860.0,0.05951803]
[1762894000399,0.1364339,102860.0,102850.0,0.15395582]
[1762894000600,1.02583339,102860.0,102850.0,0.15615385]
[1762894000804,1.02583339,102860.0,102850.0,0.05889045]
[1762894000995,0.001,102870.0,102860.0,0.05732]
[1762894001201,0.36094526,102880.0,102870.0,0.1545644]
[1762894001202,0.00014526,102880.0,102870.0,0.1545644]
[1762894001408,0.00014526,102880.0,102870.0,0.86767996]
[1762894001803,0.03918,102900.0,102890.0,0.1545455]
[1762894001997,0.36153267,102900.0,102890.0,0.31433035]
[1762894002199,0.36153267,102900.0,102890.0,0.15674353]
[1762894002503,0.00073267,102900.0,102890.0,0.31433035]
[1762894002705,0.00073267,102900.0,102890.0,0.67513035]
[1762894002912,0.00014526,102910.0,102900.0,0.1545361]
[1762894003201,0.02173148,102910.0,102900.0,0.15673413]
[1762894003407,0.00087793,102910.0,102900.0,0.15673413]
[1762894004008,0.00014526,102910.0,102900.0,0.40428182]
[1762894004207,0.7703,102930.0,102920.0,0.1545172]
[1762894004406,0.51872969,102930.0,102920.0,0.15671523]
[1762894004608,0.79182189,102930.0,102920.0,0.15671523]
[1762894004807,0.42154189,102930.0,102920.0,0.15671523]
[1762894005112,0.84982969,102930.0,102920.0,0.15671523]
[1762894005311,0.85182969,102930.0,102920.0,0.15671523]
[1762894005502,0.87141969,102930.0,102920.0,0.15671523]
[1762894005902,0.89100969,102930.0,102920.0,0.05951803]
[1762894006102,0.89300969,102930.0,102920.0,0.06051803]
[1762894006707,0.89300969,102930.0,102920.0,0.00319803]
[1762894006708,1.089868,102930.0,102920.0,0.00319803]
[1762894006916,1.088868,102930.0,102920.0,0.00219803]
[1762894007105,1.087868,102930.0,102920.0,0.00219803]
[1762894007712,0.1461672,102920.0,102910.0,0.00014526]
[1762894007905,0.70455818,102920.0,102910.0,0.00014526]
[1762894008104,0.72535297,102920.0,102910.0,0.00014526]
[1762894009704,0.87023696,102920.0,102910.0,0.00014526]
[1762894010715,0.1363961,102900.0,102890.0,0.0361]
[1762894010916,1.06502708,102900.0,102890.0,0.06000803]
[1762894011506,0.86816877,102900.0,102890.0,0.15723353]
[1762894011713,0.88896966,102900.0,102890.0,0.06000803]
[1762894012013,0.88896966,102900.0,102890.0,0.15823353]
[1762894012211,0.88896966,102900.0,102890.0,0.15923353]
[1762894012413,0.88896966,102900.0,102890.0,0.06200803]
[1762894013016,0.79175356,102900.0,102890.0,0.15923363]
[1762894013211,0.75257356,102900.0,102890.0,0.15923363]
[1762894013408,0.77216356,102900.0,102890.0,0.15923363]
[1762894013806,0.40192356,102900.0,102890.0,0.15923363]
[1762894014006,0.77216356,102900.0,102890.0,0.15923363]
[1762894014208,0.38233356,102900.0,102890.0,0.15923363]
[1762894014407,0.73177267,102900.0,102890.0,0.15923363]
[1762894015017,0.86816877,102900.0,102890.0,0.15923363]
[1762894015209,0.77095267,102900.0,102890.0,0.15923363]
[1762894015906,0.86816877,102900.0,102890.0,0.15923363]
[1762894016219,0.88899398,102900.0,102890.0,0.15923363]
[1762894016518,0.88899684,102900.0,102890.0,0.15923363]
[1762894017208,0.79178074,102900.0,102890.0,0.15923363]
[1762894019218,0.88899684,102900.0,102890.0,0.15923363]
[1762894019412,0.79178074,102900.0,102890.0,0.15923363]
[1762894020519,0.43098074,102900.0,102890.0,0.15923363]
[1762894020717,0.41015267,102900.0,102890.0,0.15923363]
[1762894022416,0.50736877,102900.0,102890.0,0.15923363]
[1762894024114,0.13712877,102900.0,102890.0,0.15923363]
[1762894024312,0.50732877,102900.0,102890.0,0.15923363]
[1762894025422,0.37093267,102900.0,102890.0,0.71689194]
[1762894025822,0.39052267,102900.0,102890.0,0.71689194]
[1762894026217,0.41011267,102900.0,102890.0,0.71689194]
[1762894026418,0.41011267,102900.0,102890.0,0.52003363]
[1762894026821,0.00073267,102900.0,102890.0,0.52003363]
[1762894027026,0.00073267,102900.0,102890.0,0.71689194]
[1762894027523,0.00073267,102900.0,102890.0,0.52003363]
[1762894027722,0.02032267,102900.0,102890.0,0.52003363]
[1762894028227,0.03991267,102900.0,102890.0,0.15923363]
[1762894028616,0.13712877,102900.0,102890.0,0.15923363]
[1762894028812,0.69478708,102900.0,102890.0,0.06200803]
[1762894029018,0.72543144,102900.0,102890.0,0.00419803]
[1762894029222,0.72543144,102900.0,102890.0,0.002]
[1762894030120,0.72543144,102900.0,102890.0,0.001]
[1762894030626,0.1364055,102890.0,102880.0,0.00014526]
[1762894030925,1.08585084,102890.0,102880.0,0.00014526]
[1762894031923,0.88899253,102890.0,102880.0,0.00014526]
[1762894032129,1.08585084,102890.0,102880.0,0.00014526]
[1762894033325,1.08585084,102890.0,102880.0,0.09738026]
[1762894033528,1.08585084,102890.0,102880.0,0.09957829]
[1762894033728,1.08585084,102890.0,102880.0,0.12212829]
[1762894034030,0.98862534,102890.0,102880.0,0.15713829]
[1762894034527,1.08585084,102890.0,102880.0,0.09957829]
[1762894034728,0.88899253,102890.0,102880.0,0.15713829]
[1762894034932,1.08585084,102890.0,102880.0,0.15713829]
[1762894036324,1.08585084,102890.0,102880.0,0.09957829]
[1762894036525,1.08585084,102890.0,102880.0,0.00234329]
[1762894037124,1.08585084,102890.0,102880.0,0.09957829]
[1762894037429,1.08585084,102890.0,102880.0,0.12212829]
[1762894037732,0.88899253,102890.0,102880.0,0.15713829]
[1762894037927,0.43100703,102890.0,102880.0,0.15713829]
[1762894038127,0.02085436,102890.0,102880.0,0.3539966]
[1762894038326,0.3608,102900.0,102890.0,0.1547855]
[1762894038327,0.40942,102900.0,102890.0,0.1547855]
[1762894038532,0.43112219,102900.0,102890.0,0.15698353]
[1762894039427,0.02270219,102900.0,102890.0,0.35384184]
[1762894039719,0.15909829,102900.0,102890.0,0.35384184]
[1762894039924,0.15909829,102900.0,102890.0,0.15698353]
[1762894040124,0.16009829,102900.0,102890.0,0.15698353]
[1762894040326,0.06288219,102900.0,102890.0,0.15698353]
[1762894041335,0.16009829,102900.0,102890.0,0.15698353]
[1762894041632,0.52089829,102900.0,102890.0,0.15698353]
[1762894042937,0.7177566,102900.0,102890.0,0.15698353]
[1762894043134,0.52089829,102900.0,102890.0,0.15698353]
[1762894043330,0.42368219,102900.0,102890.0,0.15698353]
[1762894043638,0.06288219,102900.0,102890.0,0.71464184]
[1762894043837,0.06288219,102900.0,102890.0,0.51778353]
[1762894044334,0.04191267,102900.0,102890.0,0.51778353]
[1762894044641,0.04191267,102900.0,102890.0,0.71464184]
[1762894044839,0.04191267,102900.0,102890.0,0.51778353]
[1762894045138,0.03991267,102900.0,102890.0,0.51778353]
[1762894045735,0.06088149,102900.0,102890.0,0.15698353]
[1762894045940,0.03991267,102900.0,102890.0,0.51778353]
[1762894046240,0.13712877,102900.0,102890.0,0.15698353]
[1762894046444,0.1580981,102900.0,102890.0,0.15698353]
[1762894046944,0.060882,102900.0,102890.0,0.15698353]
[1762894047146,0.14899979,102930.0,102920.0,0.05878]
[1762894047147,0.3608,102930.0,102920.0,0.05878]
[1762894047442,0.03918,102950.0,102940.0,0.1422783]
[1762894047645,0.76151267,102950.0,102940.0,0.15815633]
[1762894047837,0.40071267,102950.0,102940.0,0.15815633]
[1762894048239,0.41051267,102950.0,102940.0,0.06097803]
[1762894048442,1.07512988,102950.0,102940.0,0.00219803]
[1762894048644,0.1363583,102940.0,102930.0,0.00014526]
[1762894048843,0.69474928,102940.0,102930.0,0.00234329]
[1762894049043,0.40071267,102940.0,102930.0,0.15831109]
[1762894049745,0.77131267,102940.0,102930.0,0.15831109]
[1762894049940,0.77131267,102940.0,102930.0,0.3551694]
[1762894049941,0.00073267,102940.0,102930.0,0.3551694]
[1762894050141,0.00073267,102940.0,102930.0,0.7159694]
[1762894052048,0.03991267,102940.0,102930.0,0.15831109]
[1762894053046,0.02032267,102940.0,102930.0,0.15831109]
[1762894053245,0.40012526,102960.0,102950.0,0.1422689]
[1762894053547,0.86845743,102960.0,102950.0,0.14446693]
[1762894053743,0.49801743,102960.0,102950.0,0.06097803]
[1762894054050,0.86845743,102960.0,102950.0,0.06097803]
[1762894054548,0.87145743,102960.0,102950.0,0.15914693]
[1762894054758,0.87345743,102960.0,102950.0,0.15914693]
[1762894055443,0.87345743,102960.0,102950.0,0.06197803]
[1762894055645,1.07031574,102960.0,102950.0,0.06197803]
[1762894055848,0.87345743,102960.0,102950.0,0.15914693]
[1762894056242,0.77629793,102960.0,102950.0,0.15914693]
[1762894056746,0.38626793,102960.0,102950.0,0.15914693]
[1762894057052,0.75666793,102960.0,102950.0,0.35600524]
[1762894057252,0.36667793,102960.0,102950.0,0.35600524]
[1762894057453,0.00587793,102960.0,102950.0,1.08716524]
[1762894057953,0.00514526,102960.0,102950.0,1.33000524]
[1762894058351,0.00514526,102960.0,102950.0,1.08716524]
[1762894058556,0.00014526,102960.0,102950.0,1.32900524]
[1762894058748,0.00014526,102960.0,102950.0,1.08816524]
[1762894058948,0.00014526,102960.0,102950.0,1.33100524]
[1762894059147,0.49801743,102960.0,102950.0,0.06297803]
[1762894061158,0.49901743,102960.0,102950.0,0.06097803]
[1762894061357,0.86929743,102960.0,102950.0,0.06097803]
[1762894061560,1.06615574,102960.0,102950.0,0.02487803]
[1762894061865,1.07594574,102960.0,102950.0,0.00219803]
[1762894062252,0.86929743,102960.0,102950.0,0.06097803]
[1762894064463,0.87908743,102960.0,102950.0,0.00219803]
[1762894065450,0.87908743,102960.0,102950.0,0.02487803]
[1762894066748,0.87908743,102960.0,102950.0,0.00219803]
[1762894066948,0.1363489,102950.0,102940.0,0.01368]
[1762894067163,0.49788157,102950.0,102940.0,0.15815633]
[1762894068062,0.49788157,102950.0,102940.0,0.15915633]
[1762894068459,0.49788157,102950.0,102940.0,0.16015633]
[1762894069467,0.49788157,102950.0,102940.0,0.15915633]
[1762894069762,0.49788157,102950.0,102940.0,0.15815633]
[1762894070473,0.49788157,102950.0,102940.0,0.06097803]
[1762894071167,0.49788157,102950.0,102940.0,0.15815633]
[1762894072766,0.49788157,102950.0,102940.0,0.06097803]
[1762894073065,0.49788157,102950.0,102940.0,0.15815633]
[1762894079266,0.49788157,102950.0,102940.0,0.06097803]
[1762894079462,0.49788157,102950.0,102940.0,0.00219803]
[1762894080366,0.49788157,102950.0,102940.0,0.02435803]
[1762894080565,0.1461483,102940.0,102930.0,0.03483426]
[1762894080774,1.125124,102940.0,102930.0,0.00014526]
[1762894081069,0.87772097,102940.0,102930.0,0.00014526]
[1762894081260,1.125124,102940.0,102930.0,0.00014526]
[1762894081656,1.125124,102940.0,102930.0,0.00114526]
[1762894082170,1.126124,102940.0,102930.0,0.00114526]
[1762894082371,1.128124,102940.0,102930.0,0.00014526]
[1762894082968,1.27341356,102940.0,102930.0,0.00014526]
[1762894083267,0.1363866,102910.0,102900.0,0.1904687]
[1762894083462,0.50715927,102910.0,102900.0,0.19266673]
[1762894083765,0.86795927,102910.0,102900.0,0.09545703]
[1762894083971,0.86795927,102910.0,102900.0,0.02435803]